[Event "Titled Tuesday Blitz August 15 Early 2023"]
[White "Ozen, Deniz"]
[Black "Maltsevskaya, Aleksandra"]
[WhiteFideId "6349196"]
[BlackFideId "24174041"]
[WhiteElo "2852"]
[BlackElo "2682"]
[Result "1-0"]
[Round "6"]
[TimeControl "180+1"]
[Date "2023.08.15"]
[WhiteClock "0:00:53"]
[BlackClock "0:00:00"]
[Board "41"]

1. Nf3 {[%clk 0:03:00]}  Nf6 {[%clk 0:02:56]} 2. d4 {[%clk 0:03:01]}  g6 {[%clk 0:02:55]} 3. Nc3 {[%clk 0:03:01]}  d6 {[%clk 0:02:55]} 4. e4 {[%clk 0:03:01]}  Bg7 {[%clk 0:02:55]} 5. Be2 {[%clk 0:03:02]}  O-O {[%clk 0:02:55]} 6. O-O {[%clk 0:03:03]}  Nbd7 {[%clk 0:02:54]} 7. Be3 {[%clk 0:03:03]}  e5 {[%clk 0:02:53]} 8. dxe5 {[%clk 0:03:04]}  dxe5 {[%clk 0:02:54]} 9. a4 {[%clk 0:03:04]}  c6 {[%clk 0:02:54]} 10. Bc4 {[%clk 0:03:05]}  Qe7 {[%clk 0:02:54]} 11. h3 {[%clk 0:03:03]}  Nc5 {[%clk 0:02:54]} 12. Nd2 {[%clk 0:02:53]}  Nh5 {[%clk 0:02:53]} 13. Nb3 {[%clk 0:02:45]}  Ne6 {[%clk 0:02:51]} 14. a5 {[%clk 0:02:39]}  Nhf4 {[%clk 0:02:50]} 15. Qf3 {[%clk 0:02:19]}  Ng5 {[%clk 0:02:47]} 16. Qg3 {[%clk 0:02:19]}  h5 {[%clk 0:02:43]} 17. Bxf4 {[%clk 0:02:13]}  exf4 {[%clk 0:02:43]} 18. Qxf4 {[%clk 0:02:14]}  Bxh3 {[%clk 0:02:42]} 19. Rfe1 {[%clk 0:02:05]}  Be6 {[%clk 0:02:42]} 20. Bxe6 {[%clk 0:02:03]}  Nxe6 {[%clk 0:02:43]} 21. Qe3 {[%clk 0:02:03]}  a6 {[%clk 0:02:35]} 22. Rad1 {[%clk 0:02:02]}  Rad8 {[%clk 0:02:35]} 23. Nd5 {[%clk 0:01:55]}  Qh4 {[%clk 0:02:21]} 24. Nc3 {[%clk 0:01:41]}  Rxd1 {[%clk 0:02:13]} 25. Rxd1 {[%clk 0:01:41]}  Qg4 {[%clk 0:02:08]} 26. Re1 {[%clk 0:01:21]}  Rd8 {[%clk 0:02:03]} 27. e5 {[%clk 0:01:16]}  Re8 {[%clk 0:01:25]} 28. Ne2 {[%clk 0:01:00]}  Ng5 {[%clk 0:01:00]} 29. f4 {[%clk 0:00:58]}  Bxe5 {[%clk 0:00:45]} 30. fxe5 {[%clk 0:00:58]}  Rxe5 {[%clk 0:00:46]} 31. Qd3 {[%clk 0:00:58]}  Rf5 {[%clk 0:00:19]} 32. Nbd4 {[%clk 0:00:55]}  Rd5 {[%clk 0:00:10]} 33. Qe3 {[%clk 0:00:53]}  c5 {[%clk 0:00:08]} 34. Nf3 {[%clk 0:00:54]}  Nh3+ {[%clk 0:00:00]} 35. Kh2 {[%clk 0:00:53]} 1-0


[Site "https://www.chess.com"]

[Event "Titled Tuesday Blitz August 15 Early 2023"]
[White "Klukin, Kirill"]
[Black "Haug, Havard"]
[WhiteFideId "24199273"]
[BlackFideId "1547887"]
[WhiteElo "2812"]
[BlackElo "2671"]
[Result "1-0"]
[Round "6"]
[TimeControl "180+1"]
[Date "2023.08.15"]
[WhiteClock "0:00:13"]
[BlackClock "0:00:02"]
[Board "43"]

1. d4 {[%clk 0:03:00]}  d5 {[%clk 0:02:55]} 2. c4 {[%clk 0:03:00]}  dxc4 {[%clk 0:02:54]} 3. Nf3 {[%clk 0:03:00]}  Nf6 {[%clk 0:02:52]} 4. e3 {[%clk 0:03:01]}  e6 {[%clk 0:02:53]} 5. Bxc4 {[%clk 0:03:01]}  c5 {[%clk 0:02:53]} 6. O-O {[%clk 0:03:02]}  a6 {[%clk 0:02:51]} 7. b3 {[%clk 0:03:02]}  b5 {[%clk 0:02:51]} 8. Be2 {[%clk 0:03:02]}  Bb7 {[%clk 0:02:51]} 9. Bb2 {[%clk 0:03:02]}  Nbd7 {[%clk 0:02:48]} 10. a4 {[%clk 0:03:03]}  Qb6 {[%clk 0:02:41]} 11. axb5 {[%clk 0:02:57]}  axb5 {[%clk 0:02:39]} 12. Nc3 {[%clk 0:02:57]}  Rxa1 {[%clk 0:02:32]} 13. Qxa1 {[%clk 0:02:58]}  Bc6 {[%clk 0:02:29]} 14. Rd1 {[%clk 0:02:08]}  Be7 {[%clk 0:02:27]} 15. dxc5 {[%clk 0:01:56]}  Bxc5 {[%clk 0:02:23]} 16. Nd4 {[%clk 0:01:56]}  Bxd4 {[%clk 0:02:14]} 17. Rxd4 {[%clk 0:01:57]}  O-O {[%clk 0:02:14]} 18. h3 {[%clk 0:01:56]}  Qb7 {[%clk 0:02:11]} 19. Bf1 {[%clk 0:01:55]}  Nc5 {[%clk 0:02:08]} 20. Qd1 {[%clk 0:01:53]}  e5 {[%clk 0:02:00]} 21. Rh4 {[%clk 0:01:29]}  Qc8 {[%clk 0:01:49]} 22. Qd6 {[%clk 0:01:23]}  Nxb3 {[%clk 0:01:17]} 23. Qxe5 {[%clk 0:01:13]}  Re8 {[%clk 0:01:04]} 24. Qg5 {[%clk 0:01:11]}  Nd2 {[%clk 0:00:50]} 25. Nxb5 {[%clk 0:00:55]}  Re6 {[%clk 0:00:22]} 26. Nd4 {[%clk 0:00:39]}  Nfe4 {[%clk 0:00:18]} 27. Qxg7+ {[%clk 0:00:12]}  Kxg7 {[%clk 0:00:18]} 28. Nxe6+ {[%clk 0:00:13]}  Kg6 {[%clk 0:00:05]} 29. Rg4+ {[%clk 0:00:13]}  Kf5 {[%clk 0:00:02]} 30. Ng7# {[%clk 0:00:13]} 1-0


[Site "https://www.chess.com"]

[Event "Titled Tuesday Blitz August 15 Early 2023"]
[White "Bersamina, Paulo"]
[Black "Colas, Joshua"]
[WhiteFideId "5206995"]
[BlackFideId "2044447"]
[WhiteElo "2754"]
[BlackElo "2622"]
[Result "1-0"]
[Round "6"]
[TimeControl "180+1"]
[Date "2023.08.15"]
[WhiteClock "0:00:56"]
[BlackClock "0:00:03"]
[Board "46"]

1. e4 {[%clk 0:03:00]}  g6 {[%clk 0:00:54]} 2. d4 {[%clk 0:02:45]}  Bg7 {[%clk 0:00:54]} 3. Nc3 {[%clk 0:02:44]}  d5 {[%clk 0:00:55]} 4. exd5 {[%clk 0:02:43]}  Nf6 {[%clk 0:00:55]} 5. Nf3 {[%clk 0:02:43]}  O-O {[%clk 0:00:55]} 6. Be2 {[%clk 0:02:42]}  Nbd7 {[%clk 0:00:55]} 7. O-O {[%clk 0:02:42]}  Nb6 {[%clk 0:00:55]} 8. h3 {[%clk 0:02:42]}  Nbxd5 {[%clk 0:00:56]} 9. Nxd5 {[%clk 0:02:42]}  Nxd5 {[%clk 0:00:56]} 10. c3 {[%clk 0:02:43]}  c6 {[%clk 0:00:56]} 11. Re1 {[%clk 0:02:43]}  Bf5 {[%clk 0:00:56]} 12. Bf1 {[%clk 0:02:43]}  Qc7 {[%clk 0:00:55]} 13. a4 {[%clk 0:02:44]}  a5 {[%clk 0:00:55]} 14. Qb3 {[%clk 0:02:44]}  Rfe8 {[%clk 0:00:54]} 15. Bg5 {[%clk 0:02:44]}  h6 {[%clk 0:00:54]} 16. Bh4 {[%clk 0:02:45]}  g5 {[%clk 0:00:53]} 17. Bg3 {[%clk 0:02:45]}  Qb6 {[%clk 0:00:53]} 18. Bc4 {[%clk 0:02:42]}  Qxb3 {[%clk 0:00:53]} 19. Bxb3 {[%clk 0:02:43]}  e6 {[%clk 0:00:53]} 20. Ne5 {[%clk 0:02:42]}  Rad8 {[%clk 0:00:48]} 21. Nc4 {[%clk 0:02:41]}  Ra8 {[%clk 0:00:46]} 22. Nd6 {[%clk 0:02:41]}  Bg6 {[%clk 0:00:42]} 23. Nxe8 {[%clk 0:02:40]}  Rxe8 {[%clk 0:00:42]} 24. Be5 {[%clk 0:02:40]}  Bf8 {[%clk 0:00:42]} 25. Rac1 {[%clk 0:02:28]}  Rc8 {[%clk 0:00:41]} 26. Bc2 {[%clk 0:02:28]}  f5 {[%clk 0:00:39]} 27. Bg3 {[%clk 0:02:25]}  Bf7 {[%clk 0:00:37]} 28. f3 {[%clk 0:02:24]}  c5 {[%clk 0:00:24]} 29. Be5 {[%clk 0:02:23]}  c4 {[%clk 0:00:21]} 30. h4 {[%clk 0:02:22]}  gxh4 {[%clk 0:00:18]} 31. Kf2 {[%clk 0:02:22]}  Be7 {[%clk 0:00:18]} 32. Rh1 {[%clk 0:02:23]}  Bg5 {[%clk 0:00:18]} 33. Rcg1 {[%clk 0:02:23]}  Be3+ {[%clk 0:00:19]} 34. Ke2 {[%clk 0:02:23]}  Bxg1 {[%clk 0:00:19]} 35. Rxg1 {[%clk 0:02:24]}  Kh7 {[%clk 0:00:16]} 36. Rh1 {[%clk 0:02:24]}  Rg8 {[%clk 0:00:16]} 37. Kf2 {[%clk 0:02:24]}  Rg5 {[%clk 0:00:14]} 38. Rxh4 {[%clk 0:02:23]}  Rh5 {[%clk 0:00:14]} 39. Rxh5 {[%clk 0:02:07]}  Bxh5 {[%clk 0:00:15]} 40. Bd1 {[%clk 0:02:07]}  Bg6 {[%clk 0:00:15]} 41. Be2 {[%clk 0:02:07]}  Nb6 {[%clk 0:00:14]} 42. Bd1 {[%clk 0:01:55]}  Be8 {[%clk 0:00:14]} 43. b3 {[%clk 0:01:42]}  cxb3 {[%clk 0:00:13]} 44. Bxb3 {[%clk 0:01:43]}  Bd7 {[%clk 0:00:09]} 45. Bc7 {[%clk 0:01:42]}  Nxa4 {[%clk 0:00:10]} 46. Bxa5 {[%clk 0:01:42]}  b6 {[%clk 0:00:08]} 47. Bb4 {[%clk 0:01:42]}  Nb2 {[%clk 0:00:08]} 48. Ke3 {[%clk 0:01:40]}  b5 {[%clk 0:00:08]} 49. Kf4 {[%clk 0:01:31]}  Nd3+ {[%clk 0:00:08]} 50. Ke3 {[%clk 0:01:31]}  Nb2 {[%clk 0:00:09]} 51. g3 {[%clk 0:01:32]}  Kg6 {[%clk 0:00:09]} 52. Bc2 {[%clk 0:01:30]}  h5 {[%clk 0:00:08]} 53. Kf4 {[%clk 0:01:30]}  Kf6 {[%clk 0:00:06]} 54. Bd6 {[%clk 0:01:25]}  Nc4 {[%clk 0:00:05]} 55. Be5+ {[%clk 0:01:25]}  Nxe5 {[%clk 0:00:06]} 56. dxe5+ {[%clk 0:01:26]}  Kg6 {[%clk 0:00:05]} 57. Bd1 {[%clk 0:01:21]}  Kh6 {[%clk 0:00:06]} 58. Ke3 {[%clk 0:00:57]}  Kg6 {[%clk 0:00:05]} 59. f4 {[%clk 0:00:56]}  Kf7 {[%clk 0:00:05]} 60. Kd4 {[%clk 0:00:56]}  Ke7 {[%clk 0:00:05]} 61. Kc5 {[%clk 0:00:57]}  Be8 {[%clk 0:00:03]} 62. Be2 {[%clk 0:00:56]} 1-0


[Site "https://www.chess.com"]

[Event "Titled Tuesday Blitz August 15 Early 2023"]
[White "MaryanKyrychenko"]
[Black "Kosteniuk, Alexandra"]
[BlackFideId "4128125"]
[WhiteElo "2566"]
[BlackElo "2743"]
[Result "0-1"]
[Round "6"]
[TimeControl "180+1"]
[Date "2023.08.15"]
[WhiteClock "0:00:03"]
[BlackClock "0:00:15"]
[Board "48"]

1. e4 {[%clk 0:02:58]}  c6 {[%clk 0:02:59]} 2. d4 {[%clk 0:02:58]}  d5 {[%clk 0:02:59]} 3. e5 {[%clk 0:02:58]}  c5 {[%clk 0:02:59]} 4. dxc5 {[%clk 0:02:58]}  e6 {[%clk 0:03:00]} 5. a3 {[%clk 0:02:59]}  Bxc5 {[%clk 0:03:00]} 6. b4 {[%clk 0:02:59]}  Be7 {[%clk 0:03:00]} 7. Bb2 {[%clk 0:03:00]}  f6 {[%clk 0:02:59]} 8. Nf3 {[%clk 0:02:56]}  a5 {[%clk 0:02:57]} 9. b5 {[%clk 0:02:48]}  Nd7 {[%clk 0:02:56]} 10. Bd3 {[%clk 0:02:46]}  Qc7 {[%clk 0:02:54]} 11. Qe2 {[%clk 0:02:35]}  f5 {[%clk 0:02:29]} 12. O-O {[%clk 0:02:30]}  Nb6 {[%clk 0:02:20]} 13. Nbd2 {[%clk 0:02:23]}  Na4 {[%clk 0:02:17]} 14. Bd4 {[%clk 0:02:17]}  Nh6 {[%clk 0:02:12]} 15. Nb3 {[%clk 0:02:06]}  Nc3 {[%clk 0:01:58]} 16. Qe1 {[%clk 0:01:48]}  Ne4 {[%clk 0:01:56]} 17. b6 {[%clk 0:01:35]}  Qd8 {[%clk 0:01:56]} 18. Nxa5 {[%clk 0:01:29]}  O-O {[%clk 0:01:56]} 19. c4 {[%clk 0:01:19]}  dxc4 {[%clk 0:01:48]} 20. Nxc4 {[%clk 0:01:17]}  Qd5 {[%clk 0:01:40]} 21. Ne3 {[%clk 0:00:58]}  Qd8 {[%clk 0:01:17]} 22. a4 {[%clk 0:00:54]}  Bd7 {[%clk 0:01:17]} 23. a5 {[%clk 0:00:54]}  Bc6 {[%clk 0:01:17]} 24. Rd1 {[%clk 0:00:52]}  Qe8 {[%clk 0:01:14]} 25. Nd2 {[%clk 0:00:47]}  Nc5 {[%clk 0:01:10]} 26. Bc4 {[%clk 0:00:43]}  Qg6 {[%clk 0:01:09]} 27. f3 {[%clk 0:00:40]}  f4 {[%clk 0:01:06]} 28. Ng4 {[%clk 0:00:21]}  Nxg4 {[%clk 0:01:06]} 29. fxg4 {[%clk 0:00:22]}  Qxg4 {[%clk 0:01:07]} 30. Nf3 {[%clk 0:00:22]}  Ne4 {[%clk 0:00:57]} 31. h3 {[%clk 0:00:17]}  Qg6 {[%clk 0:00:57]} 32. Bd3 {[%clk 0:00:09]}  Rfd8 {[%clk 0:00:57]} 33. Bb2 {[%clk 0:00:09]}  Bc5+ {[%clk 0:00:54]} 34. Kh2 {[%clk 0:00:08]}  Rxd3 {[%clk 0:00:50]} 35. Rxd3 {[%clk 0:00:08]}  Ng3 {[%clk 0:00:51]} 36. Nh4 {[%clk 0:00:08]}  Qxd3 {[%clk 0:00:49]} 37. Rxf4 {[%clk 0:00:07]}  Ne2 {[%clk 0:00:39]} 38. Rf1 {[%clk 0:00:04]}  Qc2 {[%clk 0:00:34]} 39. Ba1 {[%clk 0:00:04]}  Rf8 {[%clk 0:00:30]} 40. Rxf8+ {[%clk 0:00:04]}  Bxf8 {[%clk 0:00:31]} 41. Nf3 {[%clk 0:00:04]}  Bxf3 {[%clk 0:00:28]} 42. gxf3 {[%clk 0:00:05]}  Nd4+ {[%clk 0:00:25]} 43. Kg3 {[%clk 0:00:05]}  Nf5+ {[%clk 0:00:25]} 44. Kf4 {[%clk 0:00:04]}  Qa4+ {[%clk 0:00:19]} 45. Qe4 {[%clk 0:00:04]}  Qxa1 {[%clk 0:00:18]} 46. Qxb7 {[%clk 0:00:04]}  Qxa5 {[%clk 0:00:18]} 47. Qc6 {[%clk 0:00:03]}  Qb4+ {[%clk 0:00:18]} 48. Kg5 {[%clk 0:00:03]}  h6+ {[%clk 0:00:15]} 49. Kg6 {[%clk 0:00:03]}  Ne7+ {[%clk 0:00:15]} 50. Kh5 {[%clk 0:00:03]}  Nxc6 {[%clk 0:00:15]} 51. f4 {[%clk 0:00:03]}  Qxf4 {[%clk 0:00:14]} 52. h4 {[%clk 0:00:03]}  Qf5# {[%clk 0:00:15]} 0-1


[Site "https://www.chess.com"]

[Event "Titled Tuesday Blitz August 15 Early 2023"]
[White "Toncheva, Nadya"]
[Black "Nakamura, Hikaru"]
[WhiteFideId "2924056"]
[BlackFideId "2016192"]
[WhiteElo "2561"]
[BlackElo "3239"]
[Result "0-1"]
[Round "6"]
[TimeControl "180+1"]
[Date "2023.08.15"]
[WhiteClock "0:00:00"]
[BlackClock "0:01:04"]
[Board "50"]

1. d4 {[%clk 0:03:00]}  g6 {[%clk 0:02:58]} 2. c4 {[%clk 0:03:00]}  Bg7 {[%clk 0:02:58]} 3. Nc3 {[%clk 0:03:01]}  d6 {[%clk 0:02:58]} 4. e4 {[%clk 0:03:01]}  Nf6 {[%clk 0:02:55]} 5. f4 {[%clk 0:03:01]}  c5 {[%clk 0:02:53]} 6. d5 {[%clk 0:03:01]}  O-O {[%clk 0:02:53]} 7. Nf3 {[%clk 0:03:02]}  e6 {[%clk 0:02:53]} 8. Be2 {[%clk 0:03:03]}  exd5 {[%clk 0:02:54]} 9. cxd5 {[%clk 0:03:03]}  Bg4 {[%clk 0:02:55]} 10. O-O {[%clk 0:03:03]}  Bxf3 {[%clk 0:02:55]} 11. Bxf3 {[%clk 0:03:03]}  Nbd7 {[%clk 0:02:56]} 12. Re1 {[%clk 0:03:03]}  Ne8 {[%clk 0:02:56]} 13. Be3 {[%clk 0:02:49]}  a6 {[%clk 0:02:56]} 14. a4 {[%clk 0:02:50]}  Nc7 {[%clk 0:02:56]} 15. a5 {[%clk 0:02:50]}  Nb5 {[%clk 0:02:55]} 16. Nxb5 {[%clk 0:02:04]}  axb5 {[%clk 0:02:56]} 17. e5 {[%clk 0:02:00]}  dxe5 {[%clk 0:02:49]} 18. fxe5 {[%clk 0:01:57]}  Bxe5 {[%clk 0:02:44]} 19. d6 {[%clk 0:01:42]}  Bxb2 {[%clk 0:02:20]} 20. Ra2 {[%clk 0:01:15]}  Bc3 {[%clk 0:02:18]} 21. Rf1 {[%clk 0:00:56]}  Rxa5 {[%clk 0:01:45]} 22. Rxa5 {[%clk 0:00:41]}  Qxa5 {[%clk 0:01:46]} 23. Bxb7 {[%clk 0:00:41]}  Qb6 {[%clk 0:01:46]} 24. Bd5 {[%clk 0:00:37]}  Nf6 {[%clk 0:01:35]} 25. Bb3 {[%clk 0:00:18]}  Rd8 {[%clk 0:01:21]} 26. Bxf7+ {[%clk 0:00:18]}  Kg7 {[%clk 0:01:20]} 27. Qb3 {[%clk 0:00:14]}  Be5 {[%clk 0:01:07]} 28. Qe6 {[%clk 0:00:03]}  Qxd6 {[%clk 0:01:07]} 29. Qxd6 {[%clk 0:00:01]}  Rxd6 {[%clk 0:01:04]} 30. Bxc5 {[%clk 0:00:01]}  Kxf7 {[%clk 0:01:03]} 31. Bxd6 {[%clk 0:00:01]}  Bxd6 {[%clk 0:01:04]} 32. Rc1 {[%clk 0:00:01]}  b4 {[%clk 0:01:04]} 33. Kf1 {[%clk 0:00:01]}  b3 {[%clk 0:01:03]} 34. Ke2 {[%clk 0:00:02]}  b2 {[%clk 0:01:03]} 35. Rb1 {[%clk 0:00:00]}  Be5 {[%clk 0:01:04]} 0-1


[Site "https://www.chess.com"]

[Event "Titled Tuesday Blitz August 15 Early 2023"]
[White "Akhmetov, Ayan"]
[Black "Brodowski, Piotr"]
[WhiteFideId "13703706"]
[BlackFideId "1124480"]
[WhiteElo "2546"]
[BlackElo "2740"]
[Result "1-0"]
[Round "6"]
[TimeControl "180+1"]
[Date "2023.08.15"]
[WhiteClock "0:00:50"]
[BlackClock "0:01:14"]
[Board "56"]

1. Nf3 {[%clk 0:02:54]}  c5 {[%clk 0:02:54]} 2. c4 {[%clk 0:02:53]}  Nc6 {[%clk 0:02:51]} 3. Nc3 {[%clk 0:02:53]}  g6 {[%clk 0:02:49]} 4. e3 {[%clk 0:02:54]}  Bg7 {[%clk 0:02:33]} 5. d4 {[%clk 0:02:54]}  cxd4 {[%clk 0:02:32]} 6. exd4 {[%clk 0:02:55]}  d6 {[%clk 0:02:32]} 7. d5 {[%clk 0:02:53]}  Ne5 {[%clk 0:02:31]} 8. Nxe5 {[%clk 0:02:53]}  Bxe5 {[%clk 0:02:31]} 9. Bd3 {[%clk 0:02:54]}  Bg7 {[%clk 0:02:26]} 10. O-O {[%clk 0:02:50]}  Nf6 {[%clk 0:02:26]} 11. Re1 {[%clk 0:02:49]}  O-O {[%clk 0:02:26]} 12. Bg5 {[%clk 0:02:44]}  h6 {[%clk 0:02:24]} 13. Bf4 {[%clk 0:02:41]}  Bd7 {[%clk 0:02:24]} 14. Qd2 {[%clk 0:02:40]}  Kh7 {[%clk 0:02:24]} 15. h3 {[%clk 0:02:37]}  Re8 {[%clk 0:02:24]} 16. Re2 {[%clk 0:02:33]}  Rc8 {[%clk 0:02:17]} 17. Rae1 {[%clk 0:02:32]}  Ng8 {[%clk 0:02:16]} 18. h4 {[%clk 0:02:25]}  Kh8 {[%clk 0:02:12]} 19. Ne4 {[%clk 0:02:16]}  b5 {[%clk 0:02:05]} 20. cxb5 {[%clk 0:02:06]}  Qb6 {[%clk 0:02:00]} 21. a4 {[%clk 0:01:55]}  f5 {[%clk 0:01:47]} 22. Ng3 {[%clk 0:01:42]}  Qd4 {[%clk 0:01:42]} 23. h5 {[%clk 0:01:34]}  g5 {[%clk 0:01:40]} 24. Be3 {[%clk 0:01:33]}  Qxd5 {[%clk 0:01:41]} 25. Bxf5 {[%clk 0:01:34]}  Qxd2 {[%clk 0:01:35]} 26. Rxd2 {[%clk 0:01:28]}  Nf6 {[%clk 0:01:33]} 27. Bxa7 {[%clk 0:01:21]}  Ra8 {[%clk 0:01:32]} 28. b6 {[%clk 0:01:11]}  Bxa4 {[%clk 0:01:31]} 29. Bg6 {[%clk 0:01:12]}  Red8 {[%clk 0:01:21]} 30. Rxe7 {[%clk 0:01:10]}  Bf8 {[%clk 0:01:21]} 31. Rf7 {[%clk 0:01:08]}  Nd7 {[%clk 0:01:14]} 32. Be4 {[%clk 0:00:50]} 1-0


[Site "https://www.chess.com"]

[Event "Titled Tuesday Blitz August 15 Early 2023"]
[White "Gontcharov, Vladislav"]
[Black "Weetik, Vjacheslav"]
[WhiteFideId "4123492"]
[BlackFideId "4153472"]
[WhiteElo "2540"]
[BlackElo "2737"]
[Result "1/2-1/2"]
[Round "6"]
[TimeControl "180+1"]
[Date "2023.08.15"]
[WhiteClock "0:00:26"]
[BlackClock "0:00:07"]
[Board "57"]

1. d4 {[%clk 0:03:00]}  Nf6 {[%clk 0:02:59]} 2. c4 {[%clk 0:03:00]}  e6 {[%clk 0:02:59]} 3. Nf3 {[%clk 0:02:59]}  Bb4+ {[%clk 0:02:58]} 4. Nbd2 {[%clk 0:02:59]}  b6 {[%clk 0:02:55]} 5. g3 {[%clk 0:02:58]}  Bb7 {[%clk 0:02:55]} 6. Bg2 {[%clk 0:02:58]}  O-O {[%clk 0:02:51]} 7. O-O {[%clk 0:02:57]}  a5 {[%clk 0:02:49]} 8. a3 {[%clk 0:02:35]}  Bxd2 {[%clk 0:02:49]} 9. Bxd2 {[%clk 0:02:35]}  a4 {[%clk 0:02:40]} 10. Bg5 {[%clk 0:02:33]}  d6 {[%clk 0:02:30]} 11. Rc1 {[%clk 0:02:29]}  Nbd7 {[%clk 0:02:29]} 12. Qc2 {[%clk 0:02:24]}  h6 {[%clk 0:02:22]} 13. Bf4 {[%clk 0:02:24]}  Be4 {[%clk 0:02:22]} 14. Qc3 {[%clk 0:02:24]}  Re8 {[%clk 0:02:09]} 15. Rfd1 {[%clk 0:02:23]}  Qb8 {[%clk 0:02:08]} 16. Ne1 {[%clk 0:02:18]}  Bxg2 {[%clk 0:02:05]} 17. Nxg2 {[%clk 0:02:17]}  Qb7 {[%clk 0:02:04]} 18. f3 {[%clk 0:02:02]}  e5 {[%clk 0:01:58]} 19. dxe5 {[%clk 0:02:00]}  Nxe5 {[%clk 0:01:57]} 20. Bxe5 {[%clk 0:02:00]}  Rxe5 {[%clk 0:01:52]} 21. e4 {[%clk 0:02:00]}  Nd7 {[%clk 0:01:21]} 22. Ne3 {[%clk 0:01:54]}  Nc5 {[%clk 0:01:20]} 23. Rd5 {[%clk 0:01:44]}  Rae8 {[%clk 0:01:17]} 24. Rcd1 {[%clk 0:01:41]}  Qc8 {[%clk 0:01:17]} 25. Kg2 {[%clk 0:01:36]}  h5 {[%clk 0:01:09]} 26. h4 {[%clk 0:01:35]}  Qe6 {[%clk 0:00:57]} 27. Rxe5 {[%clk 0:01:32]}  Qxe5 {[%clk 0:00:48]} 28. Qxe5 {[%clk 0:01:26]}  dxe5 {[%clk 0:00:45]} 29. Nd5 {[%clk 0:01:07]}  Ne6 {[%clk 0:00:44]} 30. Kf2 {[%clk 0:01:04]}  Kf8 {[%clk 0:00:43]} 31. Ke3 {[%clk 0:01:00]}  f6 {[%clk 0:00:33]} 32. Nc3 {[%clk 0:00:52]}  Nc5 {[%clk 0:00:33]} 33. Nb5 {[%clk 0:00:49]}  Rc8 {[%clk 0:00:21]} 34. Na7 {[%clk 0:00:45]}  Ra8 {[%clk 0:00:20]} 35. Nc6 {[%clk 0:00:45]}  Ke8 {[%clk 0:00:20]} 36. f4 {[%clk 0:00:43]}  exf4+ {[%clk 0:00:16]} 37. gxf4 {[%clk 0:00:43]}  Kf7 {[%clk 0:00:13]} 38. Nd8+ {[%clk 0:00:27]}  Ke7 {[%clk 0:00:08]} 39. Nc6+ {[%clk 0:00:27]}  Kf7 {[%clk 0:00:06]} 40. Nd8+ {[%clk 0:00:26]}  Ke7 {[%clk 0:00:07]} 41. Nc6+ {[%clk 0:00:26]}  Kf7 {[%clk 0:00:07]} 1/2-1/2


[Site "https://www.chess.com"]

[Event "Titled Tuesday Blitz August 15 Early 2023"]
[White "Wong, Yinn Long"]
[Black "Benedetti, Julio"]
[WhiteFideId "5707684"]
[BlackFideId "172545"]
[WhiteElo "2723"]
[BlackElo "2535"]
[Result "1-0"]
[Round "6"]
[TimeControl "180+1"]
[Date "2023.08.15"]
[WhiteClock "0:00:58"]
[BlackClock "0:00:00"]
[Board "58"]

1. Nf3 {[%clk 0:03:00]}  Nf6 {[%clk 0:02:59]} 2. g3 {[%clk 0:03:01]}  g6 {[%clk 0:02:59]} 3. Bg2 {[%clk 0:03:02]}  Bg7 {[%clk 0:03:00]} 4. O-O {[%clk 0:03:03]}  O-O {[%clk 0:03:00]} 5. d4 {[%clk 0:03:03]}  d6 {[%clk 0:03:00]} 6. c4 {[%clk 0:03:04]}  c6 {[%clk 0:03:01]} 7. Nc3 {[%clk 0:03:04]}  Qb6 {[%clk 0:03:01]} 8. e4 {[%clk 0:02:58]}  Qa6 {[%clk 0:03:00]} 9. Qd3 {[%clk 0:02:44]}  d5 {[%clk 0:02:45]} 10. b3 {[%clk 0:02:39]}  dxe4 {[%clk 0:02:25]} 11. Nxe4 {[%clk 0:02:37]}  Bf5 {[%clk 0:02:23]} 12. Nh4 {[%clk 0:02:33]}  Bxe4 {[%clk 0:02:14]} 13. Bxe4 {[%clk 0:02:33]}  Nxe4 {[%clk 0:02:14]} 14. Qxe4 {[%clk 0:02:34]}  e6 {[%clk 0:01:33]} 15. Nf3 {[%clk 0:02:28]}  Nd7 {[%clk 0:01:25]} 16. Bb2 {[%clk 0:02:25]}  c5 {[%clk 0:01:05]} 17. Rfd1 {[%clk 0:02:22]}  Rad8 {[%clk 0:01:04]} 18. Rd2 {[%clk 0:02:16]}  cxd4 {[%clk 0:00:54]} 19. Bxd4 {[%clk 0:02:16]}  e5 {[%clk 0:00:43]} 20. Bc3 {[%clk 0:02:00]}  Nc5 {[%clk 0:00:34]} 21. Qe3 {[%clk 0:01:57]}  Rxd2 {[%clk 0:00:33]} 22. Nxd2 {[%clk 0:01:54]}  Qd6 {[%clk 0:00:17]} 23. Bb4 {[%clk 0:01:49]}  b6 {[%clk 0:00:17]} 24. Ne4 {[%clk 0:01:46]}  Qc6 {[%clk 0:00:11]} 25. Nxc5 {[%clk 0:01:34]}  bxc5 {[%clk 0:00:12]} 26. Qxc5 {[%clk 0:01:35]}  Qb7 {[%clk 0:00:04]} 27. Rd1 {[%clk 0:01:32]}  Re8 {[%clk 0:00:04]} 28. Bc3 {[%clk 0:01:30]}  e4 {[%clk 0:00:04]} 29. Bxg7 {[%clk 0:01:29]}  Kxg7 {[%clk 0:00:05]} 30. Qd4+ {[%clk 0:01:29]}  Kg8 {[%clk 0:00:05]} 31. Qe3 {[%clk 0:01:22]}  Qa6 {[%clk 0:00:05]} 32. Rd2 {[%clk 0:01:23]}  Qc6 {[%clk 0:00:02]} 33. h4 {[%clk 0:01:23]}  a5 {[%clk 0:00:03]} 34. h5 {[%clk 0:01:23]}  gxh5 {[%clk 0:00:03]} 35. Rd5 {[%clk 0:01:23]}  Re6 {[%clk 0:00:00]} 36. Qd4 {[%clk 0:00:58]} 1-0


[Site "https://www.chess.com"]